bitfinex/quotes_BTCUSD_20250328
["timestamp","ask_amount","ask_price","bid_price","bid_amount"]
[1743145608225,0.00043844,86005.0,85996.0,0.604]
[1743145608364,0.001,86004.0,85996.0,0.604]
[1743145608564,0.00143844,86005.0,85996.0,0.604]
[1743145608862,0.00243844,86005.0,85996.0,0.604]
[1743145609232,0.00243844,86005.0,85996.0,0.615628]
[1743145609431,0.00143844,86005.0,85996.0,0.615628]
[1743145609628,0.00243844,86005.0,85996.0,0.615628]
[1743145609900,0.00243844,86005.0,85996.0,0.604]
[1743145610210,0.01824084,86003.0,85996.0,0.604]
[1743145610380,0.0822,86000.0,85996.0,0.604]
[1743145610632,0.0822,86000.0,85996.0,0.59933]
[1743145610803,0.00290716,85999.0,85996.0,0.59933]
[1743145611550,0.3,85997.0,85996.0,0.59933]
[1743145611734,2.08896864,85997.0,85996.0,0.59933]
[1743145611985,1.18547164,85997.0,85996.0,0.59933]
[1743145613675,1.19047164,85997.0,85996.0,0.59933]
[1743145614325,1.19447164,85997.0,85996.0,0.59933]
[1743145614962,0.43125764,85997.0,85996.0,0.59933]
[1743145615164,1.50158864,85997.0,85996.0,0.59933]
[1743145616325,0.93884764,85997.0,85996.0,0.59933]
[1743145616507,0.80554264,85997.0,85996.0,0.59933]
[1743145616709,0.75046764,85997.0,85996.0,0.59933]
[1743145616914,0.57563864,85997.0,85996.0,0.59933]
[1743145617537,0.77573264,85997.0,85996.0,0.59933]
[1743145617905,0.79904951,85997.0,85996.0,0.59933]
[1743145619062,0.81729309,85997.0,85996.0,0.59933]
[1743145620514,0.72946909,85997.0,85996.0,0.59933]
[1743145622389,0.72946909,85997.0,85995.0,0.0003382]
[1743145622390,0.079,85996.0,85995.0,0.0003382]
[1743145622711,5.55116584,85996.0,85995.0,0.0003382]
[1743145622946,5.54825764,85996.0,85995.0,0.0003382]
[1743145623292,4.76371264,85996.0,85995.0,0.0003382]
[1743145623502,4.78196093,85996.0,85995.0,0.0003382]
[1743145623711,4.84404278,85996.0,85995.0,0.0003382]
[1743145623904,3.74495978,85996.0,85995.0,0.0003382]
[1743145624117,2.71083378,85996.0,85995.0,0.0003382]
[1743145624314,2.84707378,85996.0,85995.0,0.0003382]
[1743145624516,2.85207378,85996.0,85995.0,0.0003382]
[1743145624700,2.85707378,85996.0,85995.0,0.0003382]
[1743145624899,2.79499193,85996.0,85995.0,0.0003382]
[1743145625215,2.77174364,85996.0,85995.0,0.0003382]
[1743145625383,2.77674364,85996.0,85995.0,0.0003382]
[1743145625783,0.69449764,85996.0,85995.0,0.0003382]
[1743145626019,3.43046764,85996.0,85995.0,0.0003382]
[1743145626479,3.19485864,85996.0,85995.0,0.0003382]
[1743145626678,2.93225564,85996.0,85995.0,0.0003382]
[1743145628150,2.083607,85996.0,85995.0,0.0003382]
[1743145628361,0.15424,85996.0,85995.0,0.0003382]
[1743145628999,0.02090755,85996.0,85995.0,0.0003382]
[1743145629175,1.20733819,85996.0,85995.0,0.0003382]
[1743145629406,0.84236664,85996.0,85995.0,0.0003382]
[1743145629759,0.84736664,85996.0,85995.0,0.0003382]
[1743145630885,0.84236664,85996.0,85995.0,0.0003382]
[1743145631327,0.84736664,85996.0,85995.0,0.0003382]
[1743145631660,0.89616664,85996.0,85995.0,0.0003382]
[1743145634585,0.76125664,85996.0,85995.0,0.0003382]
[1743145634994,0.15424,85996.0,85995.0,0.0003382]
[1743145636161,0.018,85996.0,85995.0,0.0003382]
[1743145636363,0.15424,85996.0,85995.0,0.0003382]
[1743145636568,0.14624,85996.0,85995.0,0.0003382]
[1743145636768,0.44624,85996.0,85995.0,0.0003382]
[1743145636948,0.45424,85996.0,85995.0,0.0003382]
[1743145637595,0.43624,85996.0,85995.0,0.0003382]
[1743145637971,0.14624,85996.0,85995.0,0.2445372]
[1743145638375,0.01,85996.0,85995.0,0.3260372]
[1743145638579,0.01,85996.0,85995.0,0.3751372]
[1743145638580,0.0282425,85996.0,85995.0,0.3751372]
[1743145639370,0.0284116,85996.0,85995.0,0.3751372]
[1743145639865,0.0234116,85996.0,85995.0,0.3751372]
[1743145640044,0.0264116,85996.0,85995.0,0.3751372]
[1743145640248,0.0214116,85996.0,85995.0,0.3751372]
[1743145640603,0.0254116,85996.0,85995.0,0.3751372]
[1743145640831,0.0254116,85996.0,85995.0,0.1309382]
[1743145641815,0.1616116,85996.0,85995.0,0.0003382]
[1743145643463,0.1586116,85996.0,85995.0,0.0003382]
[1743145643787,0.1566116,85996.0,85995.0,0.0003382]
[1743145644121,0.1566116,85996.0,85995.0,0.0119662]
[1743145644322,0.1606116,85996.0,85995.0,0.0119662]
[1743145644661,0.1383691,85996.0,85995.0,0.0119662]
[1743145644873,0.0021691,85996.0,85995.0,0.6160462]
[1743145645069,0.1413691,85996.0,85995.0,0.6160462]
[1743145645475,0.1413691,85996.0,85995.0,0.6044182]
[1743145645699,0.1383691,85996.0,85995.0,0.6044182]
[1743145646123,0.1363691,85996.0,85995.0,0.6044182]
[1743145646322,0.1363691,85996.0,85995.0,0.8486172]
[1743145646933,0.1383691,85996.0,85995.0,0.8486172]
[1743145647137,0.1403691,85996.0,85995.0,0.8486172]
[1743145649130,0.15861124,85996.0,85995.0,0.8486172]
[1743145650803,0.15861124,85996.0,85995.0,0.6044182]
[1743145651986,0.02241124,85996.0,85995.0,0.6044182]
[1743145652192,0.99314424,85996.0,85995.0,0.6044182]
[1743145652407,0.15861124,85996.0,85995.0,0.6044182]
[1743145652611,0.31223524,85996.0,85995.0,0.6044182]
[1743145653551,0.62023524,85996.0,85995.0,0.6044182]
[1743145653774,0.81249288,85996.0,85995.0,0.6044182]
[1743145654697,0.79025074,85996.0,85995.0,0.6044182]
[1743145654865,0.4617931,85996.0,85995.0,0.6044182]
[1743145655064,1.1361401,85996.0,85995.0,0.6044182]
[1743145655263,1.0756241,85996.0,85995.0,0.6044182]
[1743145655490,1.18988174,85996.0,85995.0,0.6044182]
[1743145655774,0.81706655,85996.0,85995.0,0.6044182]
[1743145655989,0.70614555,85996.0,85995.0,0.6044182]
[1743145656189,0.94671855,85996.0,85995.0,0.6044182]
[1743145656510,0.94371855,85996.0,85995.0,0.6044182]
[1743145656865,0.0081691,85996.0,85995.0,0.6044182]
[1743145657066,0.1483691,85996.0,85995.0,0.6044182]
[1743145657667,0.1533691,85996.0,85995.0,0.6044182]
[1743145658698,0.17161361,85996.0,85995.0,0.6044182]
[1743145662352,0.17452086,85996.0,85995.0,0.6044182]
[1743145662555,0.17161361,85996.0,85995.0,0.6044182]
[1743145663776,0.33541361,85996.0,85995.0,0.6044182]
[1743145663976,0.47161361,85996.0,85995.0,0.6044182]
[1743145664640,0.4533691,85996.0,85995.0,0.6044182]
[1743145665880,0.3171691,85996.0,85995.0,0.6044182]
[1743145666080,0.4533291,85996.0,85995.0,0.6044182]
[1743145667694,0.45317503,85996.0,85995.0,0.8369892]
[1743145668052,0.44517503,85996.0,85995.0,0.8954172]
[1743145668680,0.30901503,85996.0,85995.0,0.8954172]
[1743145668884,0.15317503,85996.0,85995.0,0.8954172]
[1743145669062,0.14517503,85996.0,85995.0,0.8954172]
[1743145669279,0.00901503,85996.0,85995.0,0.8954172]
[1743145669844,0.00901503,85996.0,85995.0,1.09197484]
[1743145670091,0.00401503,85996.0,85995.0,1.09197484]
[1743145670434,1.503e-05,85996.0,85995.0,1.09197484]
[1743145670634,0.00401503,85996.0,85995.0,1.09197484]
[1743145670981,0.00201503,85996.0,85995.0,1.09197484]
[1743145671738,1.503e-05,85996.0,85995.0,1.09197484]
[1743145673521,1.503e-05,85996.0,85995.0,1.10651569]
[1743145674198,1.503e-05,85996.0,85995.0,1.11151569]
[1743145675978,1.503e-05,85996.0,85995.0,1.10651569]
[1743145678160,1.503e-05,85996.0,85995.0,1.52373869]
[1743145679117,0.01825515,85996.0,85995.0,1.52373869]
[1743145679484,0.01825515,85996.0,85995.0,1.63799633]
[1743145679693,0.01825515,85996.0,85995.0,1.52373869]
[1743145680838,0.01825515,85996.0,85995.0,1.52873869]
[1743145681606,0.01825515,85996.0,85995.0,1.52373869]
[1743145684591,1.503e-05,85996.0,85995.0,1.52373869]
[1743145684976,1.503e-05,85996.0,85995.0,1.63799633]
[1743145686371,1.503e-05,85996.0,85995.0,1.52373869]
[1743145688556,1.503e-05,85996.0,85995.0,1.52873869]
[1743145688767,1.503e-05,85996.0,85995.0,1.84573869]
[1743145689210,0.01825396,85996.0,85995.0,1.84573869]
[1743145689420,0.01825396,85996.0,85995.0,1.82873869]
[1743145689615,0.01825396,85996.0,85995.0,1.95999633]
[1743145690019,0.01925396,85996.0,85995.0,1.95999633]
[1743145690468,9.6e-07,85996.0,85995.0,1.95999633]
[1743145691142,9.6e-07,85996.0,85995.0,2.09611633]
[1743145691362,9.6e-07,85996.0,85995.0,1.95999633]
[1743145691546,9.6e-07,85996.0,85995.0,2.09611633]
[1743145691957,0.0001691,85997.0,85996.0,0.35316789]
[1743145692168,0.0001691,85997.0,85996.0,0.65938317]
[1743145693053,0.0001691,85997.0,85996.0,0.66438317]
[1743145693480,0.0001691,85997.0,85996.0,0.66738317]
[1743145694487,0.0001691,85997.0,85996.0,0.65038317]
[1743145694717,0.0001691,85997.0,85996.0,0.66738317]
[1743145695746,0.00043844,86005.0,86004.0,0.249174]
[1743145695995,0.00043844,86005.0,86004.0,0.45517249]
[1743145697314,0.00043844,86005.0,86004.0,0.45917249]
[1743145697833,0.00043844,86005.0,86004.0,0.45417249]
[1743145699380,0.00043844,86005.0,86004.0,0.12988464]
[1743145699786,0.0186759,86005.0,86004.0,0.12988464]
[1743145701556,0.01857777,86005.0,86004.0,0.54593854]
[1743145701732,0.01857777,86005.0,86004.0,0.54693854]
[1743145701950,0.01857777,86005.0,86004.0,0.56697063]
[1743145702347,0.01857777,86005.0,86004.0,0.56897063]
[1743145702621,0.01857777,86005.0,86004.0,0.4316809]
[1743145704820,0.00034031,86005.0,86004.0,0.54593854]
[1743145708402,0.00034031,86005.0,86004.0,0.56047939]
[1743145709008,0.01857845,86005.0,86004.0,0.56047939]
[1743145710283,0.01857845,86005.0,86004.0,0.68677939]
[1743145712699,0.01857845,86005.0,86004.0,0.56047939]
[1743145713117,0.01857845,86005.0,86004.0,0.54593854]
[1743145713810,0.01857845,86005.0,86004.0,0.4200539]
[1743145714021,0.10127845,86005.0,86004.0,0.4200539]
[1743145714241,0.41218537,86005.0,86004.0,0.003]
[1743145714553,0.70847645,86005.0,86004.0,0.003]
[1743145714685,0.008,85997.0,85996.0,0.00533744]
[1743145719059,0.02624228,85997.0,85996.0,0.00533744]
[1743145719263,0.02624228,85997.0,85996.0,0.01696544]
[1743145721181,0.01824228,85997.0,85996.0,0.01696544]
[1743145721330,0.02624228,85997.0,85996.0,0.01696544]
[1743145723220,0.01824228,85997.0,85996.0,0.20267539]
[1743145723427,0.01824228,85997.0,85996.0,0.14576393]
[1743145723562,0.01824228,85997.0,85996.0,0.13122308]
[1743145723762,0.01824228,85997.0,85996.0,0.01696544]
[1743145724617,0.10397732,86001.0,86000.0,0.244185]
[1743145725843,0.002,86001.0,86000.0,0.244185]
[1743145726719,0.002,86001.0,86000.0,0.55040028]
[1743145726863,0.002,86001.0,86000.0,0.43614264]
[1743145728323,0.002,86001.0,86000.0,0.35844264]
[1743145729069,0.0202397,86001.0,86000.0,0.35844264]
[1743145730410,0.0202397,86001.0,86000.0,0.244185]
[1743145730950,0.0202397,86001.0,86000.0,0.2445234]
[1743145734685,0.002,86001.0,86000.0,0.2445234]
[1743145735330,0.002,86001.0,86000.0,0.0003384]
[1743145735501,0.002,86001.0,86000.0,0.0119654]
[1743145737179,0.002,86001.0,86000.0,0.0003384]
[1743145737387,0.01,86001.0,86000.0,0.0003384]
[1743145738120,0.31290711,86001.0,86000.0,0.0003384]
[1743145738340,0.31,86001.0,86000.0,0.0003384]
[1743145739077,0.32824259,86001.0,86000.0,0.0003384]
[1743145740263,2.57642459,86001.0,86000.0,0.0003384]
[1743145740515,2.47682823,86001.0,86000.0,0.0003384]
[1743145740715,2.23642323,86001.0,86000.0,0.0003384]
[1743145740843,2.23542323,86001.0,86000.0,0.0003384]
[1743145741043,2.23442323,86001.0,86000.0,0.0003384]
[1743145741272,2.23642323,86001.0,86000.0,0.0003384]
[1743145741477,2.23842323,86001.0,86000.0,0.0003384]
[1743145741735,2.23642323,86001.0,86000.0,0.0003384]
[1743145741947,2.23442323,86001.0,86000.0,0.0003384]
[1743145742158,2.24242323,86001.0,86000.0,0.0003384]
[1743145742497,2.28772323,86001.0,86000.0,0.0003384]
[1743145743681,2.28372323,86001.0,86000.0,0.0003384]
[1743145743829,0.83382723,86001.0,86000.0,0.0003384]
[1743145744034,0.83882723,86001.0,86000.0,0.0003384]
[1743145744244,0.71494023,86001.0,86000.0,0.0003384]
[1743145744606,0.28244,86001.0,86000.0,0.0003384]
[1743145745364,0.15404,86001.0,86000.0,0.0003384]
[1743145747177,2.005722,86001.0,86000.0,0.0003384]
[1743145747452,1.874228,86001.0,86000.0,0.0003384]
[1743145747554,1.310628,86001.0,86000.0,0.0003384]
[1743145747764,1.42488564,86001.0,86000.0,0.0003384]
[1743145747974,1.4431301,86001.0,86000.0,0.0003384]
[1743145749853,1.2498291,86001.0,86000.0,0.0003384]
[1743145751920,1.2497891,86001.0,86000.0,0.0003384]
[1743145752341,1.2315671,86001.0,86000.0,0.0003384]
[1743145752539,1.0492191,86001.0,86000.0,0.0003384]
[1743145752721,0.5865021,86001.0,86000.0,0.0003384]
[1743145753058,0.47224446,86001.0,86000.0,0.0003384]
[1743145753274,0.46424446,86001.0,86000.0,0.0003384]
[1743145753480,0.47224446,86001.0,86000.0,0.0003384]
[1743145753782,0.46424446,86001.0,86000.0,0.0003384]
[1743145754209,0.33624446,86001.0,86000.0,0.0003384]
[1743145754398,0.17224446,86001.0,86000.0,0.2445234]
[1743145754682,0.154,86001.0,86000.0,0.2445234]
[1743145755285,0.018,86001.0,86000.0,0.2445234]
[1743145755575,0.154,86001.0,86000.0,0.2445234]
[1743145756590,0.01,86001.0,86000.0,0.54975384]
[1743145756830,0.01,86001.0,86000.0,0.43758104]
[1743145757610,0.008,86004.0,86003.0,0.244177]
[1743145757765,0.00034031,86005.0,86004.0,0.011627]
[1743145758118,0.00834031,86005.0,86004.0,0.007627]
[1743145758487,0.00834031,86005.0,86003.0,0.240177]
[1743145758685,0.008,86004.0,86003.0,0.23255]
[1743145758887,0.00034031,86005.0,86003.0,0.244177]
[1743145759082,0.00434031,86005.0,86003.0,0.244177]
[1743145759315,0.02258107,86005.0,86003.0,0.244177]
[1743145759552,0.02258107,86005.0,86004.0,0.011627]
[1743145760337,0.02658107,86005.0,86004.0,0.058227]
[1743145760752,0.02258107,86005.0,86004.0,0.058227]
[1743145761178,0.02658107,86005.0,86004.0,0.058227]
[1743145761352,0.01858107,86005.0,86004.0,0.058227]
[1743145761583,0.01858107,86005.0,86004.0,0.011627]
[1743145761784,0.02258107,86005.0,86004.0,0.011627]
[1743145762394,0.008,86003.0,86000.0,0.0003384]
[1743145762517,0.008,86003.0,86000.0,0.0119654]
[1743145762725,0.00290681,86002.0,86000.0,0.0003384]
[1743145763026,0.144,86001.0,86000.0,0.0119654]
[1743145765627,0.10395181,86004.0,86003.0,0.244177]
[1743145765628,0.11195181,86004.0,86003.0,0.244177]
[1743145765829,0.10395181,86004.0,86003.0,0.321177]
[1743145766361,0.10395181,86004.0,86003.0,0.368377]
[1743145766515,0.10412101,86004.0,86003.0,0.368377]
[1743145767296,0.10512101,86004.0,86003.0,0.368377]
[1743145767684,0.10412101,86004.0,86003.0,0.368377]
[1743145767886,0.10512101,86004.0,86003.0,0.368377]
[1743145768084,0.10612101,86004.0,86003.0,0.368377]
[1743145768282,0.10512101,86004.0,86003.0,0.368377]
[1743145768488,0.10612101,86004.0,86003.0,0.368377]
[1743145768688,0.0021692,86004.0,86003.0,0.368377]
[1743145769468,0.02040978,86004.0,86003.0,0.368377]
[1743145770795,0.02040978,86004.0,86003.0,0.49717549]
[1743145771734,0.02040978,86004.0,86003.0,1.10113549]
[1743145771989,0.02040978,86004.0,86003.0,1.50364854]
[1743145772530,0.01940978,86004.0,86003.0,1.50364854]
[1743145772754,0.01940978,86004.0,86003.0,1.50564854]
[1743145772954,0.01840978,86004.0,86003.0,1.50564854]
[1743145773355,0.01840978,86004.0,86003.0,1.50864854]
[1743145774653,0.0001692,86004.0,86003.0,1.50864854]
[1743145775701,0.0001692,86004.0,86003.0,1.52318939]
[1743145777483,9.569e-05,86005.0,86004.0,0.02616785]
[1743145777682,9.569e-05,86005.0,86004.0,0.14042549]
[1743145777884,9.569e-05,86005.0,86004.0,0.55747939]
[1743145778772,9.569e-05,86005.0,86004.0,0.4286809]
[1743145779349,0.01833529,86005.0,86004.0,0.4286809]
[1743145779548,0.01833529,86005.0,86004.0,0.4306809]
[1743145781328,0.01833529,86005.0,86004.0,0.4286809]
[1743145781778,0.01833529,86005.0,86004.0,0.4306809]
[1743145782737,0.01833529,86005.0,86004.0,0.4326809]
[1743145784463,0.02633529,86005.0,86004.0,0.4210539]
[1743145784629,0.00809569,86005.0,86004.0,0.4116339]
[1743145784997,0.00809569,86005.0,86004.0,0.4096339]
[1743145785274,0.00809569,86005.0,86004.0,0.4212609]
[1743145785468,0.00809569,86005.0,86004.0,0.4202609]
[1743145785844,0.00809569,86005.0,86004.0,0.4192609]
[1743145786450,0.00809569,86005.0,86004.0,0.4202609]
[1743145787047,0.00809569,86005.0,86004.0,0.4192609]
[1743145787274,0.00809569,86005.0,86004.0,0.4076339]
[1743145789555,0.00809569,86005.0,86003.0,0.6042984]
[1743145789982,0.008,86004.0,86003.0,0.6042984]
[1743145792672,0.008,86004.0,86003.0,0.6052984]
[1743145798011,0.02624241,86004.0,86003.0,0.6052984]
[1743145799537,0.52665941,86004.0,86003.0,0.6052984]
[1743145799753,0.51172841,86004.0,86003.0,0.6052984]
[1743145800535,0.52120005,86004.0,86003.0,0.6052984]
[1743145800828,2.54800005,86004.0,86003.0,0.6052984]
[1743145801546,2.24342805,86004.0,86003.0,0.6052984]
[1743145801723,2.24342805,86004.0,86003.0,0.6042984]
[1743145802058,2.24842805,86004.0,86003.0,0.6042984]
[1743145803150,2.03961005,86004.0,86003.0,0.6042984]
[1743145803354,2.04461005,86004.0,86003.0,0.6052984]
[1743145803712,2.03961005,86004.0,86003.0,0.6052984]
[1743145804114,2.04461005,86004.0,86003.0,0.6052984]
[1743145804478,1.94664905,86004.0,86003.0,0.6052984]
[1743145804698,1.92340664,86004.0,86003.0,0.6042984]
[1743145805075,1.92840664,86004.0,86003.0,0.6042984]
[1743145805211,1.92840664,86004.0,86003.0,0.0003384]
[1743145806939,2.00130664,86004.0,86003.0,0.0003384]
[1743145807149,2.00130664,86004.0,86002.0,0.03421386]
[1743145807150,0.338,86003.0,86002.0,0.03421386]
[1743145807330,5.31798649,86003.0,86002.0,0.03421386]
[1743145808010,5.33623346,86003.0,86002.0,0.03421386]
[1743145808214,5.39648074,86003.0,86002.0,0.03421386]
[1743145808754,0.038,86001.0,86000.0,0.0003384]
[1743145808944,5.59790644,86001.0,86000.0,0.0003384]
[1743145809057,5.59499849,86001.0,86000.0,0.0003384]
[1743145809463,5.09538049,86001.0,86000.0,0.0003384]
[1743145810324,5.15562777,86001.0,86000.0,0.0003384]
[1743145810666,5.16096477,86001.0,86000.0,0.0003384]
[1743145811235,0.66058277,86001.0,86000.0,0.0003384]
[1743145811828,5.66558277,86001.0,86000.0,0.0003384]
[1743145812028,0.05254085,85997.0,85996.0,0.00533744]
[1743145812171,5.73252653,85997.0,85996.0,0.00533744]
[1743145812372,5.72961849,85997.0,85996.0,0.00533744]
[1743145812835,5.78986577,85997.0,85996.0,0.00533744]
[1743145813373,5.47499377,85997.0,85996.0,0.00533744]
[1743145813733,5.30375277,85997.0,85996.0,0.00533744]
[1743145814294,5.31375277,85997.0,85996.0,0.00533744]
[1743145814964,5.30875277,85997.0,85996.0,0.00533744]
[1743145815310,5.31375277,85997.0,85996.0,0.00533744]
[1743145817966,5.33200221,85997.0,85996.0,0.00533744]
[1743145820602,5.34363021,85997.0,85996.0,0.00533744]
[1743145820806,5.34363021,85997.0,85954.0,0.60428]
[1743145820807,0.49187085,85984.0,85954.0,0.60428]
[1743145820957,0.038,85974.0,85954.0,0.60428]
[1743145821178,5.68326738,85974.0,85954.0,0.60428]
[1743145821358,5.68035849,85974.0,85954.0,0.60428]
[1743145821559,5.73359745,85974.0,85954.0,0.60428]
[1743145821759,5.43862745,85974.0,85954.0,0.60428]
[1743145821972,0.73359745,85974.0,85954.0,0.60428]
[1743145822225,0.73859745,85974.0,85954.0,0.60428]
[1743145822511,0.73864193,85974.0,85954.0,0.60428]
[1743145823340,4.96593393,85974.0,85954.0,0.60428]
[1743145823617,4.97252393,85974.0,85954.0,0.60428]
[1743145823837,4.87615793,85974.0,85954.0,0.60428]
[1743145824020,4.80746293,85974.0,85954.0,0.60428]
[1743145824221,4.81246293,85974.0,85954.0,0.60428]
[1743145824412,4.87271021,85974.0,85954.0,0.60428]
[1743145824564,4.85445625,85974.0,85954.0,0.60428]
[1743145825269,4.85945625,85974.0,85954.0,0.60428]
[1743145828067,4.87771051,85974.0,85954.0,0.60428]
[1743145828390,4.90054565,85974.0,85954.0,0.60428]
[1743145829667,4.23968165,85974.0,85954.0,0.60428]
[1743145831456,0.008,85955.0,85954.0,0.60428]
[1743145831672,5.13217662,85955.0,85952.0,0.0001692]
[1743145831870,0.308,85953.0,85952.0,0.0001692]
[1743145832074,5.00631464,85953.0,85952.0,0.0001692]
[1743145832307,4.95062964,85953.0,85952.0,0.0001692]
[1743145832779,5.01087692,85953.0,85952.0,0.0001692]
[1743145833011,0.48250492,85953.0,85952.0,0.0001692]
[1743145833434,4.48611792,85953.0,85952.0,0.0001692]
[1743145833650,4.42587064,85953.0,85952.0,0.0001692]
[1743145834647,4.43587064,85953.0,85952.0,0.0001692]
[1743145835045,4.27415692,85953.0,85952.0,0.0001692]
[1743145836638,4.02245692,85953.0,85952.0,0.0001692]
[1743145838405,4.0453877,85953.0,85952.0,0.0001692]
[1743145839235,4.06364322,85953.0,85952.0,0.0001692]
[1743145839641,4.08864322,85953.0,85952.0,0.0001692]
[1743145840251,4.10318407,85953.0,85952.0,0.0001692]
[1743145840447,4.09318407,85953.0,85952.0,0.0001692]
[1743145840910,4.10318407,85953.0,85952.0,0.0001692]
[1743145841244,4.09818407,85953.0,85952.0,0.0001692]
[1743145841443,4.08364322,85953.0,85952.0,0.0001692]
[1743145841894,4.07864322,85953.0,85952.0,0.0001692]
[1743145842275,4.08364322,85953.0,85952.0,0.0001692]
[1743145842679,4.05864322,85953.0,85952.0,0.0001692]
[1743145842893,1.26655622,85953.0,85952.0,0.0001692]
[1743145843125,1.26655622,85953.0,85952.0,0.1296692]
[1743145843327,1.36613522,85953.0,85952.0,0.1296692]
[1743145843528,1.36613522,85953.0,85952.0,0.0484692]
[1743145843677,0.67009122,85953.0,85952.0,0.0484692]
[1743145843885,1.65815022,85953.0,85952.0,0.0484692]
[1743145844104,1.77861894,85953.0,85952.0,0.0484692]
[1743145844310,1.64221894,85953.0,85952.0,0.0484692]
[1743145844511,1.36168294,85953.0,85952.0,0.0484692]
[1743145844688,1.34342742,85953.0,85952.0,0.0484692]
[1743145845808,1.20694742,85953.0,85952.0,0.0484692]
[1743145846007,1.34326742,85953.0,85952.0,0.0484692]
[1743145847912,1.3615223,85953.0,85952.0,0.0484692]
[1743145849042,0.9830573,85953.0,85952.0,0.0484692]
[1743145850137,0.8467373,85953.0,85952.0,0.0484692]
[1743145850245,0.9832573,85953.0,85952.0,0.0484692]
[1743145850446,0.7825073,85953.0,85952.0,0.0484692]
[1743145851116,0.7824673,85953.0,85952.0,0.0484692]
[1743145851475,0.7744673,85953.0,85952.0,0.0484692]
[1743145851706,0.7824673,85953.0,85952.0,0.0484692]
[1743145851915,0.7707343,85953.0,85952.0,0.0484692]
[1743145852430,0.7356723,85953.0,85952.0,0.0484692]
[1743145853008,0.7356723,85953.0,85952.0,0.0001692]
[1743145854047,0.7306723,85953.0,85952.0,0.0001692]
[1743145854439,0.6349233,85953.0,85952.0,0.0001692]
[1743145854596,5.61166842,85953.0,85952.0,0.0001692]
[1743145854797,4.74752342,85953.0,85952.0,0.0001692]
[1743145855220,3.08562342,85953.0,85952.0,0.0001692]
[1743145855434,1.5427097,85953.0,85952.0,0.1311692]
[1743145855732,1.5044937,85953.0,85952.0,0.1311692]
[1743145855922,0.8014317,85953.0,85952.0,0.1311692]
[1743145856152,1.0353717,85953.0,85952.0,0.1311692]
[1743145856382,0.97512442,85953.0,85952.0,0.1311692]
[1743145856615,0.58358842,85953.0,85952.0,0.1311692]
[1743145856819,0.75108542,85953.0,85952.0,0.1311692]
[1743145857807,0.19558593,85953.0,85952.0,0.1311692]
[1743145858021,0.05918593,85953.0,85952.0,0.1311692]
[1743145858312,0.35918593,85953.0,85952.0,0.1311692]
[1743145858512,0.19554593,85953.0,85952.0,0.1311692]
[1743145858692,0.05118593,85953.0,85952.0,0.1311692]
[1743145858917,0.18758593,85953.0,85952.0,0.1428032]
[1743145859524,0.18258593,85953.0,85952.0,0.1428032]
[1743145859725,0.17758593,85953.0,85952.0,0.1311692]
[1743145860089,0.18158593,85953.0,85952.0,0.1428032]
[1743145860265,0.03025515,85953.0,85952.0,0.1428032]
[1743145860460,0.03025515,85953.0,85952.0,0.1311692]
[1743145860461,0.17161515,85953.0,85952.0,0.1311692]
[1743145860827,0.03125515,85953.0,85952.0,0.1311692]
[1743145861160,0.57715279,85953.0,85952.0,0.1311692]
[1743145861348,0.58515279,85953.0,85952.0,0.1311692]
[1743145861820,1.40071179,85953.0,85952.0,0.1311692]
[1743145861955,1.37472879,85953.0,85952.0,0.1311692]
[1743145862156,1.52472879,85953.0,85952.0,0.1311692]
[1743145862966,1.48496979,85953.0,85952.0,0.1311692]
[1743145865009,1.46671464,85953.0,85952.0,0.1311692]
[1743145865364,0.71689764,85953.0,85952.0,0.0486692]
[1743145865815,4.22001164,85953.0,85952.0,0.0001692]
[1743145866153,5.74189764,85953.0,85952.0,0.0001692]
[1743145866529,5.80214492,85953.0,85952.0,0.0001692]
[1743145867265,5.79814492,85953.0,85952.0,0.0001692]
[1743145867375,5.79914492,85953.0,85952.0,0.0001692]
[1743145867998,5.81740336,85953.0,85952.0,0.0001692]
[1743145868212,5.82240336,85953.0,85952.0,0.0001692]
[1743145868369,5.44156336,85953.0,85952.0,0.0001692]
[1743145869035,5.43656336,85953.0,85952.0,0.0001692]
[1743145869265,5.45110421,85953.0,85952.0,0.0001692]
[1743145869453,5.45610421,85953.0,85952.0,0.0001692]
[1743145870395,5.45110421,85953.0,85952.0,0.0001692]
[1743145870554,5.45610421,85953.0,85952.0,0.0001692]
[1743145870744,5.46110421,85953.0,85952.0,0.0001692]
[1743145871149,5.45610421,85953.0,85952.0,0.0001692]
[1743145871367,5.40085693,85953.0,85952.0,0.0001692]
[1743145871973,0.78169693,85953.0,85952.0,0.0001692]
[1743145872126,6.00938193,85953.0,85952.0,0.0001692]
[1743145872334,6.02101593,85953.0,85952.0,0.0001692]
[1743145872775,5.96156993,85953.0,85952.0,0.0001692]
[1743145872992,5.96656993,85953.0,85952.0,0.0001692]
[1743145873205,5.72888493,85953.0,85952.0,0.0001692]
[1743145873375,5.61243693,85953.0,85952.0,0.0001692]
[1743145873576,5.60743693,85953.0,85952.0,0.0001692]
[1743145874000,5.61243693,85953.0,85952.0,0.0001692]
[1743145874379,0.033,85939.0,85938.0,0.000169]
[1743145874574,5.4647082,85939.0,85938.0,0.000169]
[1743145874838,5.46179849,85939.0,85938.0,0.000169]
[1743145875315,5.46679849,85939.0,85938.0,0.000169]
[1743145875543,5.53187755,85939.0,85938.0,0.000169]
[1743145875747,5.53187755,85939.0,85938.0,0.00061426]
[1743145875884,5.53687755,85939.0,85938.0,0.00061426]
[1743145876070,0.53687755,85939.0,85938.0,0.00061426]
[1743145876273,5.53187755,85939.0,85938.0,0.00061426]
[1743145876694,5.54187755,85939.0,85938.0,0.00061426]
[1743145876909,5.42270555,85939.0,85938.0,0.00061426]
[1743145877114,5.34501755,85939.0,85938.0,0.00061426]
[1743145877526,5.22882655,85939.0,85938.0,0.00061426]
[1743145877939,5.24708599,85939.0,85938.0,0.00061426]
[1743145878163,4.51346614,85939.0,85938.0,0.00061426]
[1743145881085,4.53738331,85939.0,85938.0,0.00061426]
[1743145883422,4.67362331,85939.0,85938.0,0.00061426]
[1743145883896,4.53738331,85939.0,85938.0,0.00061426]
[1743145884116,4.67358331,85939.0,85938.0,0.00061426]
[1743145884581,4.65532387,85939.0,85938.0,0.00061426]
[1743145885911,4.63032387,85939.0,85938.0,0.00061426]
[1743145886116,4.65532387,85939.0,85938.0,0.00061426]
[1743145886807,0.68245387,85939.0,85938.0,0.00061426]
[1743145887020,5.01960987,85939.0,85938.0,0.00061426]
[1743145887219,5.14537887,85939.0,85938.0,0.00061426]
[1743145887443,4.78661287,85939.0,85938.0,0.00061426]
[1743145887652,3.27936487,85939.0,85938.0,0.04781426]
[1743145887911,3.43370397,85939.0,85938.0,0.04781426]
[1743145888105,3.36862491,85939.0,85938.0,0.04781426]
[1743145888324,3.23254491,85939.0,85938.0,0.04781426]
[1743145888518,3.36862491,85939.0,85938.0,0.04781426]
[1743145888910,3.23254491,85939.0,85938.0,0.04781426]
[1743145889114,3.36858491,85939.0,85938.0,0.04781426]